fUST/lending_fUST_20260609
["ID","MTS","AMOUNT","RATE_DAILY","PERIOD"]
[424486683,1780961438000,-300.41060929,0.00015428,2]
[424486685,1780961438000,-5126.2855043,0.00015429,2]
[424486697,1780961438000,-500.0,0.00015599,2]
[424486695,1780961438000,-2322.6658317,0.00015429,2]
[424486693,1780961438000,-956.60412,0.00015429,2]
[424486699,1780961438000,-400.0,0.000156,2]
[424486666,1780961438000,-761.81285547,0.00015128,2]
[424486677,1780961438000,-500.0,0.00015428,2]
[424486671,1780961438000,-160.0,0.00015128,2]
[424486673,1780961438000,-400.0,0.000153,2]
[424486681,1780961438000,-630.10997617,0.00015428,2]
[424486669,1780961438000,-417.15472785,0.00015128,2]
[424486689,1780961438000,-459.3088552,0.00015429,2]
[424486675,1780961438000,-400.0,0.000154,2]
[424486701,1780961438000,-6785.26074241,0.000156,2]
[424486679,1780961438000,-500.0,0.00015428,2]
[424486691,1780961438000,-5311.2205699,0.00015429,2]
[424486728,1780961438000,-18123.07510578,0.00017,2]
[424486726,1780961438000,-6785.26074237,0.00016994,2]
[424486724,1780961438000,-157.71973597,0.000169,2]
[424486731,1780961438000,-1376.06203447,0.00017,2]
[424486722,1780961438000,-186.0,0.00016734,2]
[424486718,1780961438000,-444.0,0.00016734,2]
[424486720,1780961438000,-749.705,0.00016734,2]
[424486714,1780961438000,-2208.0,0.00016734,2]
[424486709,1780961438000,-501.884742,0.00016438,2]
[424486712,1780961438000,-286.41,0.00016438,2]
[424486707,1780961438000,-151.0,0.00016438,2]
[424486705,1780961438000,-176.888819,0.00016039,2]
[424486703,1780961438000,-400.0,0.000157,2]
[424486716,1780961438000,-3625.0,0.00016734,2]
[424486687,1780961438000,-157.3483903,0.00015429,2]
[424486888,1780961440000,-3326.8294614,0.00017,2]
[424486887,1780961440000,-1194.020323,0.00017,2]
[424486889,1780961440000,-5000.0,0.00017,2]
[424487049,1780962631000,-3380.48,0.00014154,2]
[424487048,1780962631000,-882.15453942,0.00014154,2]
[424487047,1780962631000,-163.65558528,0.00013736,14]
[424487053,1780962632000,-272.26906563,0.00014596,2]
[424487055,1780962632000,-768.57031478,0.00015273,2]
[424487057,1780962632000,-336.57431928,0.00015559,2]
[424487058,1780962632000,-2254.3517225,0.00015694,2]
[424487054,1780962632000,-176.233748,0.00015068,2]
[424487056,1780962632000,-417.15472785,0.00015273,2]
[424487052,1780962632000,-202.520573,0.0001443,2]
[424487051,1780962632000,-1000.0,0.00014297,2]
[424487050,1780962632000,-737.36546058,0.00014154,2]
[424487107,1780962638000,-471.91223284,0.00015693,2]
[424487109,1780962638000,-379.1062252,0.00015693,2]
[424487105,1780962638000,-500.0,0.00015693,2]
[424487111,1780962638000,-628092.19136823,0.00015694,2]
[424487385,1780962640000,-984.45985204,0.00015694,2]
[424487384,1780962640000,-500.0,0.00015693,2]
[424488090,1780962646000,-1150.08766105,0.00015694,2]
[424488088,1780962646000,-302.0,0.00015694,2]
[424488059,1780962646000,-6300.0,0.00015694,2]
[424489789,1780963350000,200.0,0.00023123,120]
[424489805,1780963832000,-274.24289103,0.00011266,2]
[424489839,1780963832000,-1237.30973074,0.00011266,2]
[424489837,1780963832000,-970.49786276,0.00011266,2]
[424489838,1780963832000,-1071.458,0.00011266,2]
[424489948,1780963838000,-151.0,0.000156,2]
[424489918,1780963838000,-250.07286682,0.00015342,2]
[424489924,1780963838000,-820.325,0.00015594,2]
[424489922,1780963838000,-148093.29991408,0.00015594,2]
[424489920,1780963838000,-922.87393589,0.00015494,2]
[424489932,1780963838000,-1111148.552072,0.00015594,2]
[424489934,1780963838000,-191.56,0.00015594,2]
[424489955,1780963838000,-25034.0636153,0.00015698,2]
[424489936,1780963838000,-166.00899073,0.00015594,2]
[424489940,1780963838000,-317.72717711,0.00015594,2]
[424489944,1780963838000,-323.50024983,0.00015594,2]
[424489947,1780963838000,-151.0,0.000156,2]
[424489952,1780963838000,-536.8922784,0.00015698,2]
[424489942,1780963838000,-564.28346655,0.00015594,2]
[424489950,1780963838000,-5474.0381692,0.00015698,2]
[424489930,1780963838000,-1477.8415112,0.00015594,2]
[424489938,1780963838000,-176.5150984,0.00015594,2]
[424489916,1780963838000,-417.15472785,0.00015228,2]
[424489914,1780963838000,-176.888819,0.00015191,2]
[424489882,1780963838000,-151.0,0.00011611,2]
[424489878,1780963838000,-4682.64669627,0.0001138,2]
[424489876,1780963838000,-286.67663812,0.00011266,2]
[424489880,1780963838000,-3022.18844656,0.00011495,2]
[424489884,1780963838000,-300.0,0.0001209,2]
[424489886,1780963838000,-300.0,0.0001209,2]
[424489890,1780963838000,-168.7403039,0.00013351,2]
[424489912,1780963838000,-176.233748,0.00015068,2]
[424489957,1780963838000,-13164.0790957,0.00015698,2]
[424489897,1780963838000,-500.0,0.00013973,2]
[424489901,1780963838000,-500.0,0.00013973,2]
[424489899,1780963838000,-398.86766482,0.00013973,2]
[424489904,1780963838000,-261.92323766,0.00013973,2]
[424489906,1780963838000,-505.63870615,0.00013975,2]
[424489908,1780963838000,-6485.0005758,0.00013976,2]
[424489910,1780963838000,-254.446134,0.00014352,2]
[424489895,1780963838000,-1000.0,0.00013699,2]
[424489958,1780963838000,-454.05369469,0.000157,2]
[424489888,1780963838000,-3555.901307,0.00013334,2]
[424489960,1780963838000,-2869.8123601,0.00015794,2]
[424489998,1780963838000,-500.0,0.0001589,2]
[424490001,1780963838000,-385.54650589,0.0001589,2]
[424490012,1780963838000,-500.0,0.0001589,2]
[424490010,1780963838000,-368.89738444,0.0001589,2]
[424490014,1780963838000,-615.89785627,0.0001589,2]
[424490016,1780963838000,-500.0,0.0001589,2]
[424490024,1780963838000,-500.0,0.0001589,2]
[424489996,1780963838000,-500.0,0.0001589,2]
[424490018,1780963838000,-500.0,0.0001589,2]
[424490020,1780963838000,-500.0,0.0001589,2]
[424490026,1780963838000,-500.0,0.0001589,2]
[424490030,1780963838000,-500.0,0.0001589,2]
[424490031,1780963838000,-240.83219892,0.0001589,2]
[424490028,1780963838000,-500.0,0.0001589,2]
[424490035,1780963838000,-608.95952413,0.0001589,2]
[424489962,1780963838000,-500.0,0.0001589,2]
[424490022,1780963838000,-500.0,0.0001589,2]
[424489994,1780963838000,-500.0,0.0001589,2]
[424490033,1780963838000,-500.0,0.0001589,2]
[424490007,1780963838000,-500.0,0.0001589,2]
[424490000,1780963838000,-500.0,0.0001589,2]
[424489964,1780963838000,-500.0,0.0001589,2]
[424489966,1780963838000,-439.84186838,0.0001589,2]
[424489968,1780963838000,-500.0,0.0001589,2]
[424489972,1780963838000,-500.0,0.0001589,2]
[424489973,1780963838000,-500.0,0.0001589,2]
[424489982,1780963838000,-500.0,0.0001589,2]
[424489975,1780963838000,-500.0,0.0001589,2]
[424489970,1780963838000,-500.0,0.0001589,2]
[424489980,1780963838000,-500.0,0.0001589,2]
[424489984,1780963838000,-500.0,0.0001589,2]
[424489986,1780963838000,-500.0,0.0001589,2]
[424489988,1780963838000,-500.0,0.0001589,2]
[424489990,1780963838000,-500.0,0.0001589,2]
[424490005,1780963838000,-500.0,0.0001589,2]
[424490003,1780963838000,-500.0,0.0001589,2]
[424489977,1780963838000,-500.0,0.0001589,2]
[424489991,1780963838000,-397.44784931,0.0001589,2]
[424490121,1780963839000,-609.0,0.0001589,2]
[424490117,1780963839000,-609.0,0.0001589,2]
[424490119,1780963839000,-1013.0,0.0001589,2]
[424490115,1780963839000,-1013.0,0.0001589,2]
[424490113,1780963839000,-609.0,0.0001589,2]
[424490097,1780963839000,-609.0,0.0001589,2]
[424490099,1780963839000,-500.0,0.0001589,2]
[424490101,1780963839000,-1013.0,0.0001589,2]
[424490095,1780963839000,-500.0,0.0001589,2]
[424490127,1780963839000,-1013.0,0.0001589,2]
[424490107,1780963839000,-500.0,0.0001589,2]
[424490103,1780963839000,-500.0,0.0001589,2]
[424490125,1780963839000,-609.0,0.0001589,2]
[424490141,1780963839000,-609.0,0.0001589,2]
[424490134,1780963839000,-609.0,0.0001589,2]
[424490136,1780963839000,-1014.70154352,0.0001589,2]
[424490138,1780963839000,-609.0,0.0001589,2]
[424490140,1780963839000,-609.0,0.0001589,2]
[424490155,1780963839000,-500.0,0.0001589,2]
[424490153,1780963839000,-500.0,0.0001589,2]
[424490151,1780963839000,-616.02537443,0.0001589,2]
[424490157,1780963839000,-500.0,0.0001589,2]
[424490143,1780963839000,-609.0,0.0001589,2]
[424490145,1780963839000,-609.0,0.0001589,2]
[424490147,1780963839000,-609.0,0.0001589,2]
[424490149,1780963839000,-609.0,0.0001589,2]
[424490109,1780963839000,-289.45356802,0.0001589,2]
[424490123,1780963839000,-1013.0,0.0001589,2]
[424490111,1780963839000,-1013.0,0.0001589,2]
[424490048,1780963839000,-1013.0,0.0001589,2]
[424490091,1780963839000,-609.0,0.0001589,2]
[424490037,1780963839000,-1013.0,0.0001589,2]
[424490039,1780963839000,-609.0,0.0001589,2]
[424490041,1780963839000,-609.0,0.0001589,2]
[424490054,1780963839000,-609.0,0.0001589,2]
[424490056,1780963839000,-1013.0,0.0001589,2]
[424490058,1780963839000,-609.0,0.0001589,2]
[424490042,1780963839000,-1013.0,0.0001589,2]
[424490046,1780963839000,-1013.0,0.0001589,2]
[424490044,1780963839000,-609.0,0.0001589,2]
[424490052,1780963839000,-1013.0,0.0001589,2]
[424490159,1780963839000,-500.0,0.0001589,2]
[424490060,1780963839000,-1013.0,0.0001589,2]
[424490065,1780963839000,-1013.0,0.0001589,2]
[424490063,1780963839000,-609.0,0.0001589,2]
[424490067,1780963839000,-609.0,0.0001589,2]
[424490069,1780963839000,-1013.0,0.0001589,2]
[424490077,1780963839000,-1013.0,0.0001589,2]
[424490083,1780963839000,-302.30703026,0.0001589,2]
[424490081,1780963839000,-1013.0,0.0001589,2]
[424490071,1780963839000,-1013.0,0.0001589,2]
[424490079,1780963839000,-151.5,0.0001589,2]
[424490073,1780963839000,-1013.0,0.0001589,2]
[424490075,1780963839000,-609.0,0.0001589,2]
[424490085,1780963839000,-1013.0,0.0001589,2]
[424490087,1780963839000,-1013.0,0.0001589,2]
[424490089,1780963839000,-1013.0,0.0001589,2]
[424490093,1780963839000,-1013.0,0.0001589,2]
[424490105,1780963839000,-500.0,0.0001589,2]
[424490161,1780963839000,-500.0,0.0001589,2]
[424490050,1780963839000,-609.0,0.0001589,2]
[424490164,1780963839000,-500.0,0.0001589,2]
[424490218,1780963839000,-1115.0,0.0001589,2]
[424490235,1780963839000,-1115.0,0.0001589,2]
[424490231,1780963839000,-1115.0,0.0001589,2]
[424490229,1780963839000,-1115.0,0.0001589,2]
[424490233,1780963839000,-1115.0,0.0001589,2]
[424490237,1780963839000,-1115.0,0.0001589,2]
[424490241,1780963839000,-1115.0,0.0001589,2]
[424490239,1780963839000,-1115.0,0.0001589,2]
[424490243,1780963839000,-1115.0,0.0001589,2]
[424490254,1780963839000,-1115.0,0.0001589,2]
[424490256,1780963839000,-1115.0,0.0001589,2]
[424490257,1780963839000,-151.0,0.0001589,2]
[424490248,1780963839000,-1115.0,0.0001589,2]
[424490227,1780963839000,-1115.0,0.0001589,2]
[424490246,1780963839000,-1115.0,0.0001589,2]
[424490250,1780963839000,-1115.0,0.0001589,2]
[424490264,1780963839000,-1115.0,0.0001589,2]
[424490282,1780963839000,-227.033236,0.0001589,2]
[424490262,1780963839000,-151.0,0.0001589,2]
[424490266,1780963839000,-151.0,0.0001589,2]
[424490268,1780963839000,-151.0,0.0001589,2]
[424490270,1780963839000,-151.0,0.0001589,2]
[424490281,1780963839000,-151.0,0.0001589,2]
[424490277,1780963839000,-151.0,0.0001589,2]
[424490275,1780963839000,-1115.0,0.0001589,2]
[424490272,1780963839000,-151.0,0.0001589,2]
[424490279,1780963839000,-151.0,0.0001589,2]
[424490163,1780963839000,-500.0,0.0001589,2]
[424490252,1780963839000,-1115.0,0.0001589,2]
[424490221,1780963839000,-1115.0,0.0001589,2]
[424490244,1780963839000,-1115.0,0.0001589,2]
[424490225,1780963839000,-1115.0,0.0001589,2]
[424490166,1780963839000,-500.0,0.0001589,2]
[424490223,1780963839000,-1115.0,0.0001589,2]
[424490168,1780963839000,-500.0,0.0001589,2]
[424490174,1780963839000,-500.0,0.0001589,2]
[424490182,1780963839000,-472.46185822,0.0001589,2]
[424490178,1780963839000,-637.99738517,0.0001589,2]
[424490176,1780963839000,-500.0,0.0001589,2]
[424490180,1780963839000,-500.0,0.0001589,2]
[424490172,1780963839000,-500.0,0.0001589,2]
[424490184,1780963839000,-500.0,0.0001589,2]
[424490186,1780963839000,-500.0,0.0001589,2]
[424490188,1780963839000,-500.0,0.0001589,2]
[424490190,1780963839000,-554.51140481,0.0001589,2]
[424490192,1780963839000,-500.0,0.0001589,2]
[424490170,1780963839000,-500.0,0.0001589,2]
[424490208,1780963839000,-500.0,0.0001589,2]
[424490220,1780963839000,-1115.0,0.0001589,2]
[424490207,1780963839000,-500.0,0.0001589,2]
[424490212,1780963839000,-500.0,0.0001589,2]
[424490214,1780963839000,-500.0,0.0001589,2]
[424490216,1780963839000,-249.49843832,0.0001589,2]
[424490197,1780963839000,-500.0,0.0001589,2]
[424490199,1780963839000,-500.0,0.0001589,2]
[424490210,1780963839000,-500.0,0.0001589,2]
[424490195,1780963839000,-151.5,0.0001589,2]
[424490193,1780963839000,-585.23438419,0.0001589,2]
[424490203,1780963839000,-500.0,0.0001589,2]
[424490205,1780963839000,-500.0,0.0001589,2]
[424490201,1780963839000,-500.0,0.0001589,2]
[424490378,1780963840000,-166.707,0.00017064,2]
[424490365,1780963840000,-49192.0930202,0.00017,2]
[424490380,1780963840000,-1416.0,0.00017064,2]
[424490376,1780963840000,-151.585,0.00017064,2]
[424490352,1780963840000,-152.05,0.00016735,2]
[424490361,1780963840000,-151.0,0.000168,2]
[424490359,1780963840000,-151.0,0.000168,2]
[424490358,1780963840000,-151.0,0.000168,2]
[424490356,1780963840000,-151.0,0.000168,2]
[424490354,1780963840000,-151.0,0.000168,2]
[424490383,1780963840000,-1838.0,0.00017064,2]
[424490363,1780963840000,-655.969,0.00016948,2]
[424490385,1780963840000,-3625.0,0.00017064,2]
[424490403,1780963840000,-189.31937428,0.00017458,2]
[424490374,1780963840000,-1004.36,0.00017063,2]
[424490373,1780963840000,-151.0,0.00017,2]
[424490369,1780963840000,-151.0,0.00017,2]
[424490370,1780963840000,-151.0,0.00017,2]
[424490389,1780963840000,-744.0,0.00017064,2]
[424490391,1780963840000,-186.0,0.00017064,2]
[424490387,1780963840000,-2205.0,0.00017064,2]
[424490397,1780963840000,-421.38911048,0.00017279,2]
[424490395,1780963840000,-1936.28605978,0.00017087,7]
[424490399,1780963840000,-600.0,0.00017339,2]
[424490409,1780963840000,-182.87794684,0.00017476,2]
[424490411,1780963840000,-196.00045769,0.00017476,2]
[424490407,1780963840000,-171.19288169,0.00017476,2]
[424490350,1780963840000,-151.68,0.00016735,2]
[424490367,1780963840000,-200.0,0.00017,2]
[424490348,1780963840000,-2082.06979369,0.00016705,2]
[424490287,1780963840000,-289.74521575,0.00016058,2]
[424490346,1780963840000,-151.0,0.000167,2]
[424490285,1780963840000,-1115.0,0.0001589,2]
[424490401,1780963840000,-195.67465848,0.00017458,2]
[424490290,1780963840000,-151.0,0.00016126,2]
[424490292,1780963840000,-150.8,0.00016262,2]
[424490293,1780963840000,-150.82,0.00016299,2]
[424490298,1780963840000,-500.0,0.000164,2]
[424490296,1780963840000,-150.87,0.00016375,2]
[424490300,1780963840000,-373.99470307,0.00016415,2]
[424490304,1780963840000,-160.0,0.00016438,2]
[424490306,1780963840000,-197.45776154,0.00016438,2]
[424490302,1780963840000,-160.0,0.00016438,2]
[424490308,1780963840000,-151.0,0.00016438,2]
[424490310,1780963840000,-151.0,0.00016438,2]
[424490312,1780963840000,-151.0,0.00016438,2]
[424490315,1780963840000,-151.0,0.00016438,2]
[424490317,1780963840000,-151.0,0.00016438,2]
[424490329,1780963840000,-500.0,0.00016674,2]
[424490327,1780963840000,-152.45,0.00016604,2]
[424490331,1780963840000,-500.0,0.00016674,2]
[424490333,1780963840000,-500.0,0.00016674,2]
[424490323,1780963840000,-650.64681053,0.00016588,2]
[424490319,1780963840000,-152.32,0.00016478,2]
[424490321,1780963840000,-250.07286682,0.0001649,2]
[424490325,1780963840000,-1171.16425895,0.00016588,2]
[424490335,1780963840000,-500.0,0.00016674,2]
[424490337,1780963840000,-500.0,0.00016674,2]
[424490339,1780963840000,-151.0,0.000167,2]
[424490341,1780963840000,-151.0,0.000167,2]
[424490342,1780963840000,-151.0,0.000167,2]
[424490344,1780963840000,-151.0,0.000167,2]
[424490393,1780963840000,-444.0,0.00017064,2]
[424490455,1780963840000,-1740.26,0.0001863,2]
[424490413,1780963840000,-187.05789817,0.00017476,2]
[424490492,1780963840000,-168.3888056,0.00018975,2]
[424490486,1780963840000,-198.61760839,0.00018838,2]
[424490490,1780963840000,-1740.26,0.00018904,2]
[424490484,1780963840000,-568.06753243,0.00018838,2]
[424490405,1780963840000,-172.80176321,0.0001746,2]
[424490496,1780963840000,-151.0,0.00018975,2]
[424490494,1780963840000,-152.84194234,0.00018975,2]
[424490501,1780963840000,-3400.0,0.00019,3]
[424490500,1780963840000,-1010.45375582,0.00019,2]
[424490505,1780963840000,-562.723,0.00019111,2]
[424490507,1780963840000,-156.04844821,0.00019117,2]
[424490513,1780963840000,-691.20705284,0.00019157,2]
[424490509,1780963840000,-700.75031975,0.00019155,2]
[424490498,1780963840000,-500.0,0.00018975,2]
[424490511,1780963840000,-782.69863391,0.00019155,2]
[424490517,1780963840000,-684.77152678,0.00019175,2]
[424490519,1780963840000,-731.51178737,0.00019175,2]
[424490503,1780963840000,-720.0,0.00019073,2]
[424490515,1780963840000,-10588.54877679,0.0001916,2]
[424490522,1780963840000,-748.23159269,0.00019175,2]
[424490521,1780963840000,-784.00183076,0.00019175,2]
[424490524,1780963840000,-1675.80005855,0.00019175,2]
[424490530,1780963840000,-1740.26,0.00019178,2]
[424490526,1780963840000,-1202.62008403,0.00019175,2]
[424490528,1780963840000,-300.0,0.00019178,2]
[424490532,1780963840000,-604.9577723,0.00019196,2]
[424490534,1780963840000,-757.42337657,0.00019196,2]
[424490538,1780963840000,-159.93,0.00019336,2]
[424490536,1780963840000,-648.91339693,0.00019196,2]
[424490473,1780963840000,-561.17369452,0.00018817,2]
[424490479,1780963840000,-901.96506302,0.00018817,2]
[424490488,1780963840000,-486.6850477,0.00018838,2]
[424490476,1780963840000,-1256.85004391,0.00018817,2]
[424490417,1780963840000,-418.95001464,0.00017476,2]
[424490414,1780963840000,-188.07565684,0.00017476,2]
[424490419,1780963840000,-300.65502101,0.00017476,2]
[424490421,1780963840000,-189.35584414,0.00017496,2]
[424490423,1780963840000,-162.22834923,0.00017496,2]
[424490425,1780963840000,-300.0,0.00017608,7]
[424490427,1780963840000,-3249.98081859,0.00018115,2]
[424490482,1780963840000,-467.16687983,0.00018838,2]
[424490439,1780963840000,-365.75589368,0.00018281,2]
[424490437,1780963840000,-342.38576339,0.00018281,2]
[424490433,1780963840000,-378.63874855,0.00018262,2]
[424490431,1780963840000,-391.34931695,0.00018262,2]
[424490435,1780963840000,-345.60352642,0.00018264,2]
[424490445,1780963840000,-376.15131367,0.00018281,2]
[424490429,1780963840000,-233.58343992,0.00018262,2]
[424490441,1780963840000,-392.00091538,0.00018281,2]
[424490443,1780963840000,-374.11579635,0.00018281,2]
[424490474,1780963840000,-564.22697051,0.00018817,2]
[424490471,1780963840000,-588.00137307,0.00018817,2]
[424490469,1780963840000,-548.63384053,0.00018817,2]
[424490466,1780963840000,-513.57864508,0.00018817,2]
[424490452,1780963840000,-324.45669846,0.00018301,2]
[424490464,1780963840000,-151.0,0.00018817,2]
[424490449,1780963840000,-601.31004202,0.00018281,2]
[424490459,1780963840000,-518.40528963,0.00018799,2]
[424490461,1780963840000,-151.0,0.00018817,2]
[424490462,1780963840000,-151.0,0.00018817,2]
[424490457,1780963840000,-587.02397543,0.00018798,2]
[424490446,1780963840000,-837.90002928,0.00018281,2]
[424490451,1780963840000,-378.71168829,0.00018301,2]
[424490557,1780963841000,-980.00228845,0.00019532,2]
[424490551,1780963841000,-152.84194234,0.00019523,2]
[424490554,1780963841000,-855.96440847,0.00019532,2]
[424490550,1780963841000,-864.00881605,0.00019514,2]
[424490549,1780963841000,-978.37329239,0.00019512,2]
[424490555,1780963841000,-914.38973421,0.00019532,2]
[424490542,1780963841000,-159.93,0.00019338,2]
[424490546,1780963841000,-159.93,0.0001934,2]
[424490545,1780963841000,-159.89,0.0001934,2]
[424490544,1780963841000,-159.93,0.00019338,2]
[424490540,1780963841000,-159.93,0.00019336,2]
[424490553,1780963841000,-500.0,0.00019523,2]
[424490548,1780963841000,-1740.26,0.00019452,2]
[424490558,1780963841000,-935.28949087,0.00019532,2]
[424490543,1780963841000,-159.93,0.00019338,2]
[424490552,1780963841000,-152.30073465,0.00019523,2]
[424490593,1780963841000,-671.77936835,0.0002,2]
[424490595,1780963841000,-6085.88211101,0.0002,2]
[424490573,1780963841000,-684.0,0.00019899,2]
[424490567,1780963841000,-811.14174616,0.00019553,2]
[424490571,1780963841000,-160.0,0.00019884,3]
[424490569,1780963841000,-1740.26,0.00019726,2]
[424490579,1780963841000,-1740.26,0.0002,2]
[424490547,1780963841000,-159.93,0.0001934,2]
[424490581,1780963841000,-168008.31773153,0.0002,2]
[424490575,1780963841000,-4176.27038583,0.000199,2]
[424490577,1780963841000,-3258.89525596,0.00019998,2]
[424490565,1780963841000,-946.77922071,0.00019553,2]
[424490562,1780963841000,-1503.27510504,0.00019532,2]
[424490560,1780963841000,-2094.75007319,0.00019532,2]
[424490564,1780963841000,-756.19721537,0.00019553,2]
[424490892,1780963843000,-1148.2849989,0.00015494,2]
[424490889,1780963843000,-485.7107963,0.00015494,2]
[424491166,1780963846000,-1585.68992899,0.00015494,2]
[424491168,1780963846000,-494.293216,0.00015494,2]
[424491170,1780963846000,-373.30958529,0.00015494,2]
[424491185,1780963846000,-112874.9980883,0.00015494,2]
[424491187,1780963846000,-1530.00043292,0.00015494,2]
[424491999,1780965032000,-433.45811007,9.577e-05,2]
[424492010,1780965032000,-268.33136501,0.00013323,7]
[424492012,1780965032000,-1000.0,0.00013699,2]
[424492013,1780965032000,-5000.0,0.00013958,2]
[424492015,1780965032000,-560.76920362,0.00013958,2]
[424492001,1780965032000,-1101.74559054,9.674e-05,2]
[424492017,1780965032000,-4439.23079638,0.00013958,2]
[424492021,1780965032000,-4211.57194794,0.00013958,2]
[424492008,1780965032000,-178.88757666,0.00012583,7]
[424492003,1780965032000,-5000.0,9.772e-05,2]
[424492019,1780965032000,-5000.0,0.00013958,2]
[424492004,1780965032000,-151.0,9.871e-05,2]
[424492023,1780965032000,-320.5503,0.00013958,2]
[424492025,1780965032000,-467.87775206,0.00013958,2]
[424492027,1780965032000,-130.82736829,0.00013958,2]
[424492006,1780965032000,-151.0,0.00010176,2]
[424492078,1780965038000,-464.90917535,0.00013958,2]
[424492086,1780965038000,-2849.8060003,0.00013958,2]
[424492348,1780965041000,-2439.29248574,0.00013818,2]
[424492350,1780965041000,-1554.45745606,0.00013958,2]
[424492346,1780965041000,-2560.70751426,0.00013818,2]
[424492354,1780965041000,-176.233748,0.00015068,2]
[424492352,1780965041000,-254.4461347,0.00014093,2]
[424492358,1780965041000,-338.51134947,0.00015188,2]
[424492356,1780965041000,-417.15472785,0.00015188,2]
[424492445,1780965046000,-147.61965053,0.00015188,2]
[424492447,1780965046000,-261.0,0.00015383,2]
[424492448,1780965046000,-300.0,0.00015383,2]
[424492455,1780965046000,-6274.07866982,0.00015394,2]
[424492452,1780965046000,-1170.54594855,0.00015394,2]
[424492450,1780965046000,-822.77,0.00015384,3]
[424492451,1780965046000,-438.06440092,0.00015393,2]
[424492476,1780966232000,-194.33498931,0.00013953,2]
[424492474,1780966232000,-128.04577409,0.00013953,2]
[424492471,1780966232000,-262.32078478,0.00013538,2]
[424492472,1780966232000,-4737.67921522,0.00013538,2]
[424492473,1780966232000,-306.64508064,0.00013953,2]
[424492475,1780966232000,-371.95422591,0.00013953,2]
[424492573,1780966241000,-5000.0,0.00013954,2]
[424492571,1780966241000,-500.0,0.00013953,2]
[424492570,1780966241000,-305.66501069,0.00013953,2]
[424492572,1780966241000,-529.50202921,0.00013953,2]
[424492576,1780966241000,-3918.7099517,0.00013954,2]
[424492575,1780966241000,-5000.0,0.00013954,2]
[424492578,1780966241000,-743.79065797,0.00014142,2]
[424492577,1780966241000,-1081.2900483,0.00013954,2]
[424492574,1780966241000,-5000.0,0.00013954,2]
[424492652,1780966242000,-15347.40702775,0.00015093,2]
[424492649,1780966242000,-152.09,0.00015083,3]
[424492641,1780966242000,-388.905,0.00014791,2]
[424492643,1780966242000,-2284.54275476,0.00014993,2]
[424492645,1780966242000,-3570.83380627,0.00014993,2]
[424492639,1780966242000,-256.20934203,0.00014142,2]
[424492650,1780966242000,-456.31,0.00015083,3]
[424492647,1780966242000,-176.233748,0.00015068,2]
[424492801,1780966243000,-2297.19620628,0.00015093,2]
[424492803,1780966243000,-3487.31149781,0.00015093,2]
[424492805,1780966243000,-878.91953977,0.00015093,2]
[424493205,1780966247000,-52801.90359077,0.00015093,2]
[424493203,1780966247000,-5000.0,0.00014,2]
[424494089,1780967345000,-151.0,9.893e-05,2]
[424494091,1780967399000,-1890.50548111,0.00010199,2]
[424494092,1780967409000,-1209.92350791,0.00010199,2]
[424494093,1780967422000,-1209.92350791,0.00010199,2]
[424494118,1780967434000,-532.4329174,0.00013457,2]
[424494117,1780967434000,-304.18,0.00012329,2]
[424494116,1780967434000,-151.0,0.00010406,2]
[424494115,1780967434000,-2277.67210721,0.00010199,2]
[424494114,1780967434000,-2722.32789279,0.00010199,2]
[424494179,1780967438000,-214.65155645,0.00014632,2]
[424494189,1780967438000,-500.0,0.00014632,2]
[424494169,1780967438000,-194.9586951,0.00013457,2]
[424494167,1780967438000,-152.0,0.00013323,7]